fUST/lending_fUST_20250222
["ID","MTS","AMOUNT","RATE_DAILY","PERIOD"]
[354081687,1740227437061,-500.0,0.0001378,2]
[354081688,1740227437070,-298.63026314,0.0001378,2]
[354081689,1740227437079,-500.0,0.0001378,2]
[354081690,1740227437088,-4289.84,0.0001378,2]
[354081691,1740227437098,-666.81,0.0001378,2]
[354081692,1740227437107,-500.0,0.0001378,2]
[354081693,1740227437116,-500.0,0.0001378,2]
[354081694,1740227437125,-500.0,0.0001378,2]
[354081695,1740227437134,-2656.92,0.0001378,2]
[354081696,1740227437144,-500.0,0.0001378,2]
[354081697,1740227437153,-500.0,0.0001378,2]
[354081698,1740227437162,-500.0,0.0001378,2]
[354081699,1740227437172,-500.0,0.0001378,2]
[354081700,1740227437181,-151.0,0.000138,2]
[354081701,1740227437191,-1034.64,0.00013862,2]
[354081702,1740227437200,-1034.64,0.00013862,2]
[354081703,1740227437209,-1034.64,0.00013862,2]
[354081704,1740227437218,-860.23,0.00013862,2]
[354081705,1740227437227,-860.23,0.00013862,2]
[354081707,1740227437236,-860.23,0.00013862,2]
[354081709,1740227437245,-860.23,0.00013862,2]
[354081710,1740227437255,-500.0,0.00013863,2]
[354081712,1740227437264,-500.0,0.00013863,2]
[354081714,1740227437274,-500.0,0.00013863,2]
[354081716,1740227437283,-500.0,0.00013863,2]
[354081719,1740227437291,-500.0,0.00013863,2]
[354081721,1740227437301,-500.0,0.00013863,2]
[354081723,1740227437310,-500.0,0.00013863,2]
[354081725,1740227437319,-500.0,0.00013863,2]
[354081727,1740227437328,-189.17586508,0.00013863,2]
[354081728,1740227437337,-500.0,0.00013863,2]
[354081729,1740227437346,-500.0,0.00013863,2]
[354081730,1740227437354,-500.0,0.00013863,2]
[354081731,1740227437364,-500.0,0.00013863,2]
[354081732,1740227437373,-500.0,0.00013863,2]
[354081733,1740227437383,-500.0,0.00013863,2]
[354081734,1740227437392,-500.0,0.00013863,2]
[354081735,1740227437402,-500.0,0.00013863,2]
[354081736,1740227437411,-500.0,0.00013863,2]
[354081737,1740227437420,-500.0,0.00013863,2]
[354081738,1740227437429,-500.0,0.00013863,2]
[354081739,1740227437439,-500.0,0.00013863,2]
[354081740,1740227437448,-500.0,0.00013863,2]
[354081741,1740227437458,-500.0,0.00013863,2]
[354081742,1740227437467,-500.0,0.00013863,2]
[354081743,1740227437476,-500.0,0.00013863,2]
[354081744,1740227437485,-500.0,0.00013863,2]
[354081745,1740227437495,-500.0,0.00013863,2]
[354081747,1740227437504,-500.0,0.00013863,2]
[354081748,1740227437513,-500.0,0.00013863,2]
[354081749,1740227437523,-500.0,0.00013863,2]
[354081750,1740227437533,-500.0,0.00013863,2]
[354081751,1740227437543,-500.0,0.00013863,2]
[354081752,1740227437553,-500.0,0.00013863,2]
[354081753,1740227437562,-500.0,0.00013863,2]
[354081754,1740227437572,-500.0,0.00013863,2]
[354081755,1740227437582,-500.0,0.00013863,2]
[354081756,1740227437591,-500.0,0.00013863,2]
[354081757,1740227437600,-500.0,0.00013863,2]
[354081758,1740227437609,-560.7222449,0.00013863,2]
[354081759,1740227437619,-500.0,0.00013863,2]
[354081760,1740227437628,-295.32,0.00013863,2]
[354081761,1740227437638,-500.0,0.00013863,2]
[354081762,1740227437646,-500.0,0.00013863,2]
[354081763,1740227437658,-500.0,0.00013863,2]
[354081764,1740227437668,-588.71,0.00013863,2]
[354081765,1740227437678,-500.0,0.00013863,2]
[354081766,1740227437688,-549.31818159,0.00013863,2]
[354081767,1740227437697,-333.78,0.00013863,2]
[354081768,1740227437706,-500.0,0.00013863,2]
[354081769,1740227437715,-500.0,0.00013863,2]
[354081770,1740227437724,-209.35,0.00013863,2]
[354081771,1740227437733,-500.0,0.00013863,2]
[354081772,1740227437742,-500.0,0.00013863,2]
[354081773,1740227437753,-500.0,0.00013863,2]
[354081774,1740227437833,-500.0,0.00013863,2]
[354081775,1740227437843,-500.0,0.00013863,2]
[354081776,1740227437853,-207.02163708,0.00013863,2]
[354081777,1740227437863,-679.27,0.00013863,2]
[354081779,1740227437872,-310.92,0.00013863,2]
[354081780,1740227437881,-500.0,0.00013863,2]
[354081781,1740227437890,-482.7,0.00013863,2]
[354081782,1740227437899,-500.0,0.00013863,2]
[354081783,1740227437909,-500.0,0.00013863,2]
[354081784,1740227437918,-582.93,0.00013863,2]
[354081785,1740227437927,-1673.88,0.00013863,2]
[354081786,1740227437936,-500.0,0.00013863,2]
[354081787,1740227437946,-500.0,0.00013863,2]
[354081788,1740227437954,-1135.45,0.00013863,2]
[354081789,1740227437964,-500.0,0.00013863,2]
[354081790,1740227437973,-500.0,0.00013863,2]
[354081791,1740227437982,-500.0,0.00013863,2]
[354081792,1740227437991,-500.0,0.00013863,2]
[354081793,1740227438000,-500.0,0.00013863,2]
[354081794,1740227438009,-500.0,0.00013863,2]
[354081795,1740227438018,-500.0,0.00013863,2]
[354081796,1740227438027,-500.0,0.00013863,2]
[354081797,1740227438036,-669.38,0.00013863,2]
[354081798,1740227438047,-500.0,0.00013863,2]
[354081799,1740227438056,-500.0,0.00013863,2]
[354081800,1740227438065,-771.31,0.00013863,2]
[354081801,1740227438075,-500.0,0.00013863,2]
[354081802,1740227438085,-500.0,0.00013863,2]
[354081803,1740227438094,-500.0,0.00013863,2]
[354081804,1740227438103,-500.0,0.00013863,2]
[354081805,1740227438113,-500.0,0.00013863,2]
[354081806,1740227438122,-500.0,0.00013863,2]
[354081807,1740227438131,-500.0,0.00013863,2]
[354081808,1740227438140,-500.0,0.00013863,2]
[354081809,1740227438149,-2557.15,0.00013863,2]
[354081810,1740227438159,-500.0,0.00013863,2]
[354081811,1740227438168,-5024.73,0.00013863,2]
[354081812,1740227438177,-1509.7,0.00013863,2]
[354081813,1740227438186,-500.0,0.00013863,2]
[354081814,1740227438195,-500.0,0.00013863,2]
[354081815,1740227438205,-500.0,0.00013863,2]
[354081816,1740227438214,-500.0,0.00013863,2]
[354081817,1740227438224,-500.0,0.00013863,2]
[354081818,1740227438233,-500.0,0.00013863,2]
[354081819,1740227438242,-500.0,0.00013863,2]
[354081820,1740227438252,-500.0,0.00013863,2]
[354081821,1740227438261,-500.0,0.00013863,2]
[354081822,1740227438270,-500.0,0.00013863,2]
[354081823,1740227438280,-615.56,0.00013863,2]
[354081824,1740227438289,-10931.75,0.00013863,2]
[354081825,1740227438298,-500.0,0.00013863,2]
[354081826,1740227438307,-500.0,0.00013863,2]
[354081827,1740227438317,-500.0,0.00013863,2]
[354081828,1740227438326,-4289.84,0.00013863,2]
[354081829,1740227438335,-666.81,0.00013863,2]
[354081830,1740227438345,-381.4081187,0.00013863,2]
[354081831,1740227438354,-500.0,0.00013863,2]
[354081832,1740227438364,-500.0,0.00013863,2]
[354081833,1740227438373,-2656.92,0.00013863,2]
[354081834,1740227438383,-500.0,0.00013863,2]
[354081835,1740227438392,-500.0,0.00013863,2]
[354081836,1740227438401,-500.0,0.00013863,2]
[354081837,1740227438411,-860.23,0.00013943,2]
[354081838,1740227438420,-860.23,0.00013943,2]
[354081839,1740227438429,-860.23,0.00013943,2]
[354081840,1740227438439,-860.23,0.00013943,2]
[354081841,1740227438448,-860.25856239,0.00013943,2]
[354081842,1740227438457,-1034.64,0.00013944,2]
[354081843,1740227438467,-1034.64,0.00013944,2]
[354081844,1740227438476,-1034.64,0.00013944,2]
[354081845,1740227438486,-500.0,0.00013945,2]
[354081846,1740227438500,-323.37,0.00013945,2]
[354081847,1740227438516,-500.0,0.00013945,2]
[354081848,1740227438531,-500.0,0.00013945,2]
[354081849,1740227438545,-245.67,0.00013945,2]
[354081850,1740227438559,-500.0,0.00013945,2]
[354081851,1740227438573,-500.0,0.00013945,2]
[354081852,1740227438587,-500.0,0.00013945,2]
[354081853,1740227438603,-500.0,0.00013945,2]
[354081854,1740227438618,-500.0,0.00013945,2]
[354081855,1740227438630,-455.67,0.00013945,2]
[354081856,1740227438644,-679.27,0.00013945,2]
[354081857,1740227438659,-500.0,0.00013945,2]
[354081858,1740227438672,-500.0,0.00013945,2]
[354081859,1740227438685,-500.0,0.00013945,2]
[354081860,1740227438696,-582.93,0.00013945,2]
[354081861,1740227438710,-1673.88,0.00013945,2]
[354081862,1740227438724,-1135.45,0.00013945,2]
[354081863,1740227438737,-500.0,0.00013945,2]
[354081864,1740227438752,-500.0,0.00013945,2]
[354081865,1740227438769,-500.0,0.00013945,2]
[354081866,1740227438784,-500.0,0.00013945,2]
[354081867,1740227438795,-669.38,0.00013945,2]
[354081868,1740227438807,-500.0,0.00013945,2]
[354081869,1740227438821,-500.0,0.00013945,2]
[354081870,1740227438836,-771.31,0.00013945,2]
[354081871,1740227438850,-246.42,0.00013945,2]
[354081872,1740227438862,-500.0,0.00013945,2]
[354081873,1740227438875,-2557.15,0.00013945,2]
[354081874,1740227438887,-500.0,0.00013945,2]
[354081875,1740227438898,-5024.73,0.00013945,2]
[354081876,1740227438911,-1509.7,0.00013945,2]
[354081877,1740227438924,-500.0,0.00013945,2]
[354081878,1740227438936,-422.79,0.00013945,2]
[354081879,1740227438948,-368.04,0.00013945,2]
[354081880,1740227438961,-10931.75,0.00013945,2]
[354081881,1740227438973,-500.0,0.00013945,2]
[354081882,1740227438985,-4289.84,0.00013945,2]
[354081883,1740227438997,-666.81,0.00013945,2]
[354081884,1740227439009,-500.0,0.00013945,2]
[354081885,1740227439022,-500.0,0.00013945,2]
[354081886,1740227439034,-2656.92,0.00013945,2]
[354081887,1740227439046,-500.0,0.00013945,2]
[354081888,1740227439059,-500.0,0.00013945,2]
[354081889,1740227439072,-236.30155626,0.00013959,2]
[354081890,1740227439084,-1034.64,0.00013999,2]
[354081891,1740227439097,-1034.64,0.00013999,2]
[354081892,1740227439109,-151.0,0.00014,2]
[354081893,1740227439122,-43656.23110008,0.00014,4]
[354081894,1740227439134,-1034.64,0.00014026,2]
[354081895,1740227439146,-1034.64,0.00014026,2]
[354081896,1740227439158,-1034.64,0.00014026,2]
[354081897,1740227439170,-1034.64,0.00014026,2]
[354081898,1740227439182,-1034.75232722,0.00014026,2]
[354081899,1740227439195,-500.0,0.00014027,2]
[354081901,1740227439208,-500.0,0.00014027,2]
[354081902,1740227439220,-631.21,0.00014027,2]
[354081903,1740227439233,-446.72,0.00014027,2]
[354081904,1740227439245,-500.0,0.00014027,2]
[354081905,1740227439259,-500.0,0.00014027,2]
[354081906,1740227439272,-500.0,0.00014027,2]
[354081907,1740227439284,-500.0,0.00014027,2]
[354081909,1740227439296,-679.27,0.00014027,2]
[354081910,1740227439309,-500.0,0.00014027,2]
[354081911,1740227439322,-160.24,0.00014027,2]
[354081912,1740227439334,-287.94109487,0.00014027,2]
[354081913,1740227439346,-582.93,0.00014027,2]
[354081914,1740227439360,-1673.88,0.00014027,2]
[354081916,1740227439372,-1135.45,0.00014027,2]
[354081917,1740227439385,-500.0,0.00014027,2]
[354081921,1740227439397,-500.0,0.00014027,2]
[354081922,1740227439515,-500.0,0.00014027,2]
[354081923,1740227439525,-500.0,0.00014027,2]
[354081924,1740227439534,-669.38,0.00014027,2]
[354081925,1740227439544,-500.0,0.00014027,2]
[354081926,1740227439553,-500.0,0.00014027,2]
[354081927,1740227439562,-771.31,0.00014027,2]
[354081928,1740227439571,-500.0,0.00014027,2]
[354081929,1740227439580,-2557.15,0.00014027,2]
[354081930,1740227439590,-500.0,0.00014027,2]
[354081931,1740227439599,-5024.73,0.00014027,2]
[354081932,1740227439609,-1509.7,0.00014027,2]
[354081933,1740227439618,-500.0,0.00014027,2]
[354081934,1740227439628,-10931.75,0.00014027,2]
[354081935,1740227439637,-500.0,0.00014027,2]
[354081936,1740227439646,-4289.84,0.00014027,2]
[354081937,1740227439656,-666.81,0.00014027,2]
[354081938,1740227439665,-500.0,0.00014027,2]
[354081939,1740227439675,-500.0,0.00014027,2]
[354081940,1740227439684,-2656.92,0.00014027,2]
[354081941,1740227439693,-532.96,0.00014027,2]
[354081942,1740227439702,-276.1,0.00014027,2]
[354081943,1740227439711,-151.0,0.000141,2]
[354081944,1740227439720,-500.0,0.00014109,2]
[354081945,1740227439730,-500.0,0.00014109,2]
[354081946,1740227439739,-500.0,0.00014109,2]
[354081947,1740227439748,-500.0,0.00014109,2]
[354081948,1740227439758,-155.61,0.00014109,2]
[354081949,1740227439767,-500.0,0.00014109,2]
[354081950,1740227439779,-679.27,0.00014109,2]
[354081951,1740227439788,-500.0,0.00014109,2]
[354081952,1740227439797,-582.93,0.00014109,2]
[354081953,1740227439807,-1673.88,0.00014109,2]
[354081954,1740227439817,-1135.45,0.00014109,2]
[354081955,1740227439826,-500.0,0.00014109,2]
[354081956,1740227439836,-500.0,0.00014109,2]
[354081957,1740227439845,-500.0,0.00014109,2]
[354081959,1740227439855,-500.0,0.00014109,2]
[354081961,1740227439865,-669.38,0.00014109,2]
[354081962,1740227439875,-621.92,0.00014109,2]
[354081963,1740227439884,-500.0,0.00014109,2]
[354081964,1740227439894,-771.31,0.00014109,2]
[354081966,1740227439903,-500.0,0.00014109,2]
[354081967,1740227439913,-2557.15,0.00014109,2]
[354081968,1740227439922,-500.0,0.00014109,2]
[354081969,1740227439932,-5024.73,0.00014109,2]
[354081970,1740227439941,-1509.7,0.00014109,2]
[354081971,1740227439950,-500.0,0.00014109,2]
[354081972,1740227439959,-10931.75,0.00014109,2]
[354081973,1740227439969,-500.0,0.00014109,2]
[354081974,1740227439978,-4289.84,0.00014109,2]
[354081975,1740227439987,-666.81,0.00014109,2]
[354081976,1740227439996,-189.62,0.00014109,2]
[354081977,1740227440005,-500.0,0.00014109,2]
[354081978,1740227440015,-2656.92,0.00014109,2]
[354081979,1740227440025,-295.82154828,0.00014128,2]
[354081980,1740227440035,-500.0,0.00014191,2]
[354081981,1740227440046,-500.0,0.00014191,2]
[354081982,1740227440056,-382.29,0.00014191,2]
[354081983,1740227440068,-500.0,0.00014191,2]
[354081984,1740227440077,-183.88,0.00014191,2]
[354081985,1740227440086,-679.27,0.00014191,2]
[354081986,1740227440096,-500.0,0.00014191,2]
[354081987,1740227440105,-582.93,0.00014191,2]
[354081988,1740227440114,-1673.88,0.00014191,2]
[354081989,1740227440123,-1135.45,0.00014191,2]
[354081990,1740227440132,-500.0,0.00014191,2]
[354081991,1740227440142,-500.0,0.00014191,2]
[354081992,1740227440151,-631.2,0.00014191,2]
[354081993,1740227440160,-570.84,0.00014191,2]
[354081994,1740227440170,-669.38,0.00014191,2]
[354081995,1740227440179,-500.0,0.00014191,2]
[354081996,1740227440188,-771.31,0.00014191,2]
[354081997,1740227440197,-285.69,0.00014191,2]
[354081998,1740227440207,-2557.15,0.00014191,2]
[354081999,1740227440216,-500.0,0.00014191,2]
[354082000,1740227440226,-5024.73,0.00014191,2]
[354082001,1740227440236,-1509.7,0.00014191,2]
[354082002,1740227440246,-500.0,0.00014191,2]
[354082003,1740227440255,-10931.75,0.00014191,2]
[354082004,1740227440265,-399.28,0.00014191,2]
[354082005,1740227440274,-4289.84,0.00014191,2]
[354082006,1740227440283,-666.81,0.00014191,2]
[354082007,1740227440293,-500.0,0.00014191,2]
[354082008,1740227440302,-2656.92,0.00014191,2]
[354082009,1740227440312,-151.0,0.000142,2]
[354082010,1740227440321,-151.0,0.000142,2]
[354082011,1740227440330,-1000.0,0.00014221,2]
[354082012,1740227440339,-1040.03147791,0.00014221,2]
[354082013,1740227440349,-500.0,0.00014221,2]
[354082014,1740227440358,-236.30155626,0.0001424,2]
[354082015,1740227440367,-615.55,0.00014273,2]
[354082016,1740227440377,-500.0,0.00014273,2]
[354082017,1740227440386,-617.15233253,0.00014273,2]
[354082018,1740227440396,-679.27,0.00014273,2]
[354082019,1740227440406,-500.0,0.00014273,2]
[354082020,1740227440415,-582.93,0.00014273,2]
[354082021,1740227440424,-1673.88,0.00014273,2]
[354082022,1740227440435,-1135.45,0.00014273,2]
[354082023,1740227440444,-238.51,0.00014273,2]
[354082024,1740227440454,-500.0,0.00014273,2]
[354082025,1740227440464,-669.38,0.00014273,2]
[354082026,1740227440473,-500.0,0.00014273,2]
[354082027,1740227440482,-771.31,0.00014273,2]
[354082028,1740227440491,-2557.15,0.00014273,2]
[354082029,1740227440501,-235.42,0.00014273,2]
[354082030,1740227440511,-5024.73,0.00014273,2]
[354082031,1740227440520,-1509.7,0.00014273,2]
[354082032,1740227440529,-500.0,0.00014273,2]
[354082033,1740227440539,-10931.75,0.00014273,2]
[354082034,1740227440550,-4289.84,0.00014273,2]
[354082035,1740227440561,-666.81,0.00014273,2]
[354082036,1740227440570,-500.0,0.00014273,2]
[354082037,1740227440581,-2656.92,0.00014273,2]
[354082038,1740227440592,-500.0,0.00014287,2]
[354082039,1740227440602,-151.0,0.000143,2]
[354082040,1740227440612,-638.24284107,0.00014356,2]
[354082041,1740227440621,-679.27,0.00014356,2]
[354082042,1740227440630,-500.0,0.00014356,2]
[354082043,1740227440640,-582.93,0.00014356,2]
[354082044,1740227440649,-1673.88,0.00014356,2]
[354082045,1740227440658,-1135.45,0.00014356,2]
[354082046,1740227440668,-500.0,0.00014356,2]
[354082047,1740227440678,-669.38,0.00014356,2]
[354082048,1740227440687,-416.48,0.00014356,2]
[354082049,1740227440697,-771.31,0.00014356,2]
[354082050,1740227440706,-2557.15,0.00014356,2]
[354082051,1740227440715,-5024.73,0.00014356,2]
[354082052,1740227440724,-1509.7,0.00014356,2]
[354082053,1740227440734,-500.0,0.00014356,2]
[354082054,1740227440743,-10931.75,0.00014356,2]
[354082055,1740227440753,-4289.84,0.00014356,2]
[354082056,1740227440763,-666.81,0.00014356,2]
[354082057,1740227440777,-160.51,0.00014356,2]
[354082058,1740227440786,-2656.92,0.00014356,2]
[354082059,1740227440796,-151.0,0.000144,2]
[354082060,1740227440806,-151.0,0.000144,2]
[354082061,1740227440815,-679.27,0.00014438,2]
[354082062,1740227440824,-511.1,0.00014438,2]
[354082063,1740227440835,-582.93,0.00014438,2]
[354082064,1740227440846,-1673.88,0.00014438,2]
[354082065,1740227440856,-1135.45,0.00014438,2]
[354082066,1740227440867,-500.0,0.00014438,2]
[354082067,1740227440877,-669.38,0.00014438,2]
[354082068,1740227440886,-771.31,0.00014438,2]
[354082069,1740227440895,-2557.15,0.00014438,2]
[354082070,1740227440904,-5024.73,0.00014438,2]
[354082071,1740227440914,-1509.7,0.00014438,2]
[354082072,1740227440925,-619.88328305,0.00014438,2]
[354082073,1740227440935,-10931.75,0.00014438,2]
[354082074,1740227440945,-4289.84,0.00014438,2]
[354082075,1740227440955,-666.81,0.00014438,2]
[354082076,1740227440964,-2656.92,0.00014438,2]
[354082077,1740227440974,-151.0,0.000145,2]
[354082078,1740227440984,-236.30155626,0.0001452,2]
[354082079,1740227440994,-679.27,0.0001452,2]
[354082080,1740227441003,-582.93,0.0001452,2]
[354082081,1740227441013,-1673.88,0.0001452,2]
[354082082,1740227441022,-1135.45,0.0001452,2]
[354082083,1740227441032,-500.0,0.0001452,2]
[354082084,1740227441042,-669.38,0.0001452,2]
[354082085,1740227441051,-771.31,0.0001452,2]
[354082086,1740227441060,-2557.15,0.0001452,2]
[354082087,1740227441069,-5024.73,0.0001452,2]
[354082088,1740227441079,-1509.7,0.0001452,2]
[354082089,1740227441088,-10931.75,0.0001452,2]
[354082090,1740227441097,-4289.84,0.0001452,2]
[354082091,1740227441106,-666.81,0.0001452,2]
[354082092,1740227441116,-2656.92,0.0001452,2]
[354082093,1740227441125,-679.27,0.00014602,2]
[354082094,1740227441134,-582.93,0.00014602,2]
[354082095,1740227441143,-1673.88,0.00014602,2]
[354082096,1740227441153,-1135.45,0.00014602,2]
[354082097,1740227441162,-500.0,0.00014602,2]
[354082098,1740227441171,-669.38,0.00014602,2]
[354082099,1740227441180,-771.31,0.00014602,2]
[354082100,1740227441189,-2557.15,0.00014602,2]
[354082101,1740227441199,-5024.73,0.00014602,2]
[354082102,1740227441208,-1509.7,0.00014602,2]
[354082103,1740227441217,-10931.75,0.00014602,2]
[354082104,1740227441226,-4289.84,0.00014602,2]
[354082105,1740227441235,-666.81,0.00014602,2]
[354082106,1740227441244,-2656.92,0.00014602,2]
[354082107,1740227441253,-679.27,0.00014684,2]
[354082108,1740227441262,-582.93,0.00014684,2]
[354082109,1740227441271,-1673.88,0.00014684,2]
[354082110,1740227441280,-1135.45,0.00014684,2]
[354082111,1740227441289,-500.0,0.00014684,2]
[354082112,1740227441298,-669.38,0.00014684,2]
[354082113,1740227441307,-771.31,0.00014684,2]
[354082114,1740227441316,-2557.15,0.00014684,2]
[354082115,1740227441325,-5024.73,0.00014684,2]
[354082116,1740227441334,-1509.7,0.00014684,2]
[354082117,1740227441343,-10931.75,0.00014684,2]
[354082118,1740227441352,-4289.84,0.00014684,2]
[354082119,1740227441427,-666.81,0.00014684,2]
[354082120,1740227441447,-2656.92,0.00014684,2]
[354082121,1740227441456,-151.0,0.000147,2]
[354082122,1740227441466,-151.0,0.000147,2]
[354082123,1740227441475,-679.27,0.00014767,2]
[354082124,1740227441484,-582.93,0.00014767,2]
[354082125,1740227441494,-1673.88,0.00014767,2]
[354082126,1740227441503,-1135.45,0.00014767,2]
[354082127,1740227441513,-500.0,0.00014767,2]
[354082128,1740227441522,-669.38,0.00014767,2]
[354082129,1740227441532,-771.31,0.00014767,2]
[354082130,1740227441541,-2557.15,0.00014767,2]
[354082131,1740227441550,-5024.73,0.00014767,2]
[354082132,1740227441559,-1509.7,0.00014767,2]
[354082133,1740227441569,-10931.75,0.00014767,2]
[354082134,1740227441578,-4289.84,0.00014767,2]
[354082135,1740227441587,-666.81,0.00014767,2]
[354082136,1740227441597,-2656.92,0.00014767,2]
[354082137,1740227441606,-1147.546,0.00014791,2]
[354082138,1740227441615,-169.065,0.00014791,2]
[354082139,1740227441624,-151.0,0.000148,2]
[354082140,1740227441633,-236.30155626,0.000148,2]
[354082141,1740227441643,-284.32,0.000148,2]
[354082142,1740227441652,-165.85732852,0.000148,2]
[354082143,1740227441661,-165.85732852,0.000148,2]
[354082144,1740227441671,-165.85732852,0.000148,2]
[354082145,1740227441680,-165.85,0.000148,2]
[354082146,1740227441689,-196.16188624,0.000148,2]
[354082147,1740227441698,-196.16188624,0.000148,2]
[354082148,1740227441707,-196.16188624,0.000148,2]
[354082149,1740227441716,-196.16188624,0.000148,2]
[354082150,1740227441725,-196.16188624,0.000148,2]
[354082151,1740227441735,-196.16188624,0.000148,2]
[354082152,1740227441744,-196.16188624,0.000148,2]
[354082153,1740227441754,-196.16188624,0.000148,2]
[354082154,1740227441766,-196.16188624,0.000148,2]
[354082155,1740227441780,-196.16188624,0.000148,2]
[354082156,1740227441789,-196.16188624,0.000148,2]
[354082157,1740227441799,-196.16188624,0.000148,2]
[354082158,1740227441809,-196.16188624,0.000148,2]
[354082159,1740227441818,-196.16188624,0.000148,2]
[354082160,1740227441827,-196.16188624,0.000148,2]
[354082161,1740227441836,-196.16188624,0.000148,2]
[354082162,1740227441847,-196.16188624,0.000148,2]
[354082163,1740227441857,-196.16188624,0.000148,2]
[354082164,1740227441866,-196.16188624,0.000148,2]
[354082165,1740227441875,-196.16,0.000148,2]
[354082166,1740227441884,-457.71106789,0.000148,2]
[354082167,1740227441894,-457.71106789,0.000148,2]
[354082168,1740227441903,-457.71106789,0.000148,2]
[354082169,1740227441913,-457.71106789,0.000148,2]
[354082170,1740227441922,-457.71106789,0.000148,2]
[354082171,1740227441931,-457.71106789,0.000148,2]
[354082172,1740227441940,-457.71106789,0.000148,2]
[354082173,1740227441949,-457.71106789,0.000148,2]
[354082174,1740227441959,-457.71106789,0.000148,2]
[354082175,1740227441968,-457.71106789,0.000148,2]
[354082176,1740227441977,-457.71106789,0.000148,2]
[354082177,1740227441986,-457.71106789,0.000148,2]
[354082178,1740227441997,-457.71106789,0.000148,2]
[354082179,1740227442007,-457.71106789,0.000148,2]
[354082180,1740227442018,-457.71106789,0.000148,2]
[354082181,1740227442027,-457.71106789,0.000148,2]
[354082182,1740227442039,-457.71106789,0.000148,2]
[354082183,1740227442049,-457.71106789,0.000148,2]
[354082184,1740227442059,-457.71106789,0.000148,2]
[354082185,1740227442068,-457.71,0.000148,2]
[354082186,1740227442077,-245.9609401,0.000148,2]
[354082187,1740227442087,-245.9609401,0.000148,2]
[354082188,1740227442096,-245.9609401,0.000148,2]
[354082189,1740227442106,-245.9609401,0.000148,2]
[354082190,1740227442115,-245.9609401,0.000148,2]
[354082191,1740227442124,-245.9609401,0.000148,2]
[354082192,1740227442133,-245.9609401,0.000148,2]
[354082193,1740227442143,-245.9609401,0.000148,2]
[354082194,1740227442152,-245.9609401,0.000148,2]
[354082195,1740227442161,-245.9609401,0.000148,2]
[354082196,1740227442171,-245.9609401,0.000148,2]
[354082197,1740227442180,-245.9609401,0.000148,2]
[354082198,1740227442190,-245.9609401,0.000148,2]
[354082199,1740227442199,-245.9609401,0.000148,2]
[354082200,1740227442209,-245.9609401,0.000148,2]
[354082201,1740227442219,-245.9609401,0.000148,2]
[354082202,1740227442227,-245.9609401,0.000148,2]
[354082204,1740227442237,-245.9609401,0.000148,2]
[354082205,1740227442246,-245.9609401,0.000148,2]
[354082206,1740227442256,-245.96,0.000148,2]
[354082207,1740227442266,-573.90886023,0.000148,2]
[354082208,1740227442275,-573.90886023,0.000148,2]
[354082209,1740227442284,-573.90886023,0.000148,2]